fUSD/lending_fUSD_20250628
["ID","MTS","AMOUNT","RATE_DAILY","PERIOD"]
[368257073,1751076643917,-174.13249927,0.0004339,20]
[368257075,1751076643927,-467.97390765,0.00043399,11]
[368257077,1751076643936,-7100.04772064,0.000434,2]
[368257079,1751076643947,-988.21904263,0.000434,120]
[368257081,1751076643960,-4860.0,0.000434,5]
[368257083,1751076643969,-500.0,0.000434,2]
[368257085,1751076643978,-943.60681,0.000434,18]
[368257087,1751076643987,-22615.140879,0.0004347,3]
[368257089,1751076643996,-501.1830925,0.00043473,10]
[368257091,1751076644006,-153.536659,0.0004348,2]
[368257093,1751076644015,-29878.15347491,0.0004348,3]
[368257143,1751076644465,-37967.26916199,0.0004348,3]
[368257145,1751076644475,-38982.3533752,0.0004348,3]
[368257147,1751076644484,-151.74,0.0004348,2]
[368257149,1751076644494,-101768.133955,0.0004349,3]
[368257151,1751076644503,-199243.139473,0.0004349,3]
[368257153,1751076644512,-193.922937,0.0004349,14]
[368257155,1751076644522,-444.13604333,0.0004349,7]
[368257157,1751076644532,-151.74,0.0004349,2]
[368257159,1751076644541,-151.74,0.0004349,2]
[368257161,1751076644551,-181714.16780532,0.000435,2]
[368257163,1751076644560,-346195.5,0.000435,120]
[368257165,1751076644569,-1192.47,0.000435,14]
[368257167,1751076644578,-500.0,0.00043504,3]
[368257169,1751076644587,-500.0,0.00043579,3]
[368257171,1751076644597,-500.0,0.00043674,2]
[368257173,1751076644606,-5000.0,0.000437,120]
[368257175,1751076644615,-151.74,0.00043713,2]
[368257177,1751076644625,-9306.16195907,0.00043717,15]
[368257179,1751076644634,-342.234,0.00043723,2]
[368257181,1751076644644,-4331.6375,0.00043723,2]
[368257183,1751076644653,-187729.3843,0.00043723,2]
[368257185,1751076644662,-1000.0,0.00043723,2]
[368257187,1751076644672,-184.70093228,0.00043735,18]
[368257189,1751076644681,-500.0,0.00043778,3]
[368257191,1751076644691,-6815.3138034,0.000438,2]
[368257193,1751076644700,-22685.44147391,0.000438,120]
[368257195,1751076644709,-500.0,0.00043825,3]
[368257197,1751076644721,-500.0,0.00043825,3]
[368257199,1751076644731,-500.0,0.00043825,3]
[368257201,1751076644741,-150.0,0.00043825,3]
[368257203,1751076644751,-500.0,0.00043825,3]
[368257205,1751076644761,-150.0,0.00043825,3]
[368257207,1751076644770,-500.0,0.00043825,3]
[368257209,1751076644780,-500.0,0.00043825,3]
[368257211,1751076644791,-150.0,0.00043825,3]
[368257213,1751076644801,-500.0,0.00043825,3]
[368257215,1751076644810,-150.0,0.00043825,3]
[368257217,1751076644820,-300.0,0.00043834,60]
[368257219,1751076644830,-300.0,0.00043834,60]
[368257221,1751076644840,-300.0,0.00043834,60]
[368257223,1751076644850,-300.0,0.00043834,60]
[368257225,1751076644862,-300.0,0.00043834,60]
[368257227,1751076644871,-300.0,0.00043834,60]
[368257229,1751076644881,-300.0,0.00043834,60]
[368257231,1751076644891,-300.0,0.00043834,60]
[368257233,1751076644900,-300.0,0.00043834,60]
[368257235,1751076644910,-300.0,0.00043834,60]
[368257237,1751076644920,-300.0,0.00043834,60]
[368257239,1751076644929,-200.0,0.00043834,60]
[368257241,1751076644939,-300.0,0.00043834,60]
[368257243,1751076644949,-200.0,0.00043834,60]
[368257245,1751076644958,-215.0738,0.00043834,60]
[368257247,1751076644968,-218.4,0.00043834,120]
[368257249,1751076644979,-4196.63808692,0.00043835,24]
[368257251,1751076644988,-609.04164809,0.00043835,60]
[368257253,1751076644998,-499.51056301,0.00043835,60]
[368257255,1751076645007,-490.0,0.00043835,60]
[368257257,1751076645017,-490.0,0.00043835,60]
[368257259,1751076645026,-490.0,0.00043835,60]
[368257261,1751076645035,-490.0,0.00043835,60]
[368257263,1751076645044,-490.0,0.00043835,60]
[368257265,1751076645053,-490.0,0.00043835,60]
[368257267,1751076645066,-490.0,0.00043835,60]
[368257269,1751076645076,-508.77554197,0.00043835,60]
[368257272,1751076645086,-490.0,0.00043835,60]
[368257274,1751076645096,-490.0,0.00043835,60]
[368257276,1751076645106,-358.879719,0.00043835,60]
[368257278,1751076645115,-490.0,0.00043835,60]
[368257280,1751076645124,-490.0,0.00043835,60]
[368257282,1751076645133,-490.0,0.00043835,60]
[368257284,1751076645143,-860.793633,0.00043835,60]
[368257286,1751076645153,-490.0,0.00043835,60]
[368257287,1751076645163,-490.0,0.00043835,60]
[368257289,1751076645172,-490.0,0.00043835,60]
[368257291,1751076645181,-618.921083,0.00043835,60]
[368257293,1751076645191,-490.0,0.00043835,60]
[368257295,1751076645200,-504.67022131,0.00043835,60]
[368257297,1751076645211,-507.44524276,0.00043835,60]
[368257299,1751076645220,-495.61943248,0.00043835,60]
[368257301,1751076645230,-506.08597286,0.00043835,60]
[368257303,1751076645239,-492.29433382,0.00043835,60]
[368257304,1751076645248,-490.0,0.00043835,60]
[368257305,1751076645258,-506.62440693,0.00043835,60]
[368257306,1751076645267,-505.85217822,0.00043835,60]
[368257307,1751076645277,-491.46764365,0.00043835,60]
[368257308,1751076645286,-505.35371473,0.00043835,60]
[368257309,1751076645295,-490.0,0.00043835,60]
[368257310,1751076645305,-490.0,0.00043835,60]
[368257311,1751076645314,-490.0,0.00043835,60]
[368257312,1751076645324,-492.41882908,0.00043835,60]
[368257313,1751076645333,-507.41525913,0.00043835,60]
[368257314,1751076645342,-506.65911837,0.00043835,60]
[368257315,1751076645352,-491.70093912,0.00043835,60]
[368257316,1751076645361,-490.0,0.00043835,60]
[368257317,1751076645371,-512.13042663,0.00043835,60]
[368257318,1751076645380,-490.0,0.00043835,60]
[368257319,1751076645390,-501.87016878,0.00043835,60]
[368257320,1751076645399,-504.76010728,0.00043835,60]
[368257321,1751076645409,-526.29058098,0.00043835,60]
[368257322,1751076645419,-504.6763284,0.00043835,60]
[368257323,1751076645429,-496.69573577,0.00043835,60]
[368257324,1751076645439,-497.79377852,0.00043835,60]
[368257325,1751076645448,-490.0,0.00043835,60]
[368257326,1751076645457,-490.0,0.00043835,60]
[368257327,1751076645467,-490.0,0.00043835,60]
[368257328,1751076645477,-490.0,0.00043835,60]
[368257329,1751076645486,-490.0,0.00043835,60]
[368257330,1751076645495,-490.0,0.00043835,60]
[368257331,1751076645504,-495.22680551,0.00043835,60]
[368257332,1751076645513,-493.88686815,0.00043835,60]
[368257333,1751076645523,-531.96014041,0.00043835,60]
[368257334,1751076645532,-168.152612,0.00043835,60]
[368257335,1751076645541,-499.47351282,0.00043835,60]
[368257336,1751076645551,-508.62952144,0.00043835,60]
[368257337,1751076645561,-493.05512047,0.00043835,60]
[368257338,1751076645571,-490.0,0.00043835,60]
[368257339,1751076645580,-490.0,0.00043835,60]
[368257340,1751076645589,-502.95233408,0.00043835,60]
[368257341,1751076645599,-494.14433346,0.00043835,60]
[368257342,1751076645609,-499.8460668,0.00043835,60]
[368257343,1751076645618,-499.52705061,0.00043835,30]
[368257344,1751076645627,-496.87858684,0.00043835,60]
[368257345,1751076645637,-490.0,0.00043835,60]
[368257346,1751076645646,-490.0,0.00043835,60]
[368257347,1751076645656,-539.09222913,0.00043835,60]
[368257348,1751076645665,-493.30151971,0.00043835,60]
[368257349,1751076645675,-506.86393346,0.00043835,60]
[368257350,1751076645684,-150.754138,0.00043835,60]
[368257351,1751076645693,-490.0,0.00043835,60]
[368257352,1751076645703,-490.0,0.00043835,60]
[368257353,1751076645714,-179.243418,0.00043835,60]
[368257354,1751076645725,-505.39875936,0.00043835,60]
[368257355,1751076645734,-490.0,0.00043835,60]
[368257356,1751076645745,-493.85369489,0.00043835,60]
[368257357,1751076645755,-498.5213183,0.00043835,60]
[368257358,1751076645765,-503.96116036,0.00043835,60]
[368257359,1751076645776,-511.36518648,0.00043835,60]
[368257360,1751076645785,-490.0,0.00043835,60]
[368257361,1751076645797,-508.1252723,0.00043835,60]
[368257362,1751076645808,-284.930488,0.00043835,60]
[368257363,1751076645817,-508.38984835,0.00043835,60]
[368257364,1751076645827,-490.0,0.00043835,60]
[368257365,1751076645837,-495.53399448,0.00043835,60]
[368257366,1751076645846,-502.06800533,0.00043835,60]
[368257367,1751076645856,-412.06900115,0.00043835,60]
[368257368,1751076645865,-505.12701176,0.00043835,60]
[368257369,1751076645874,-501.77025992,0.00043835,60]
[368257370,1751076645884,-490.0,0.00043835,60]
[368257371,1751076645893,-199.13396599,0.00043835,60]
[368257373,1751076645903,-490.0,0.00043835,60]
[368257375,1751076645912,-490.0,0.00043835,60]
[368257377,1751076645921,-508.0202375,0.00043835,60]
[368257379,1751076645931,-490.0,0.00043835,60]
[368257380,1751076645941,-188.13513,0.00043835,60]
[368257381,1751076645950,-490.0,0.00043835,60]
[368257382,1751076645960,-628.15505893,0.00043835,60]
[368257383,1751076645971,-496.94527957,0.00043835,60]
[368257384,1751076645981,-155.781053,0.00043835,60]
[368257385,1751076645990,-495.1139293,0.00043835,60]
[368257386,1751076645999,-490.0,0.00043835,60]
[368257387,1751076646009,-490.0,0.00043835,60]
[368257388,1751076646018,-518.27516512,0.00043835,60]
[368257389,1751076646027,-490.0,0.00043835,60]
[368257390,1751076646036,-191.798475,0.00043835,60]
[368257391,1751076646046,-300.0,0.00043835,60]
[368257392,1751076646055,-490.0,0.00043835,60]
[368257393,1751076646064,-490.0,0.00043835,60]
[368257394,1751076646073,-502.4613743,0.00043835,60]
[368257396,1751076646082,-490.0,0.00043835,60]
[368257397,1751076646092,-490.0,0.00043835,60]
[368257398,1751076646101,-495.84221513,0.00043835,60]
[368257399,1751076646110,-490.0,0.00043835,60]
[368257400,1751076646119,-490.0,0.00043835,7]
[368257401,1751076646129,-490.0,0.00043835,60]
[368257402,1751076646138,-490.0,0.00043835,60]
[368257403,1751076646148,-497.02985872,0.00043835,60]
[368257404,1751076646157,-493.26626342,0.00043835,60]
[368257405,1751076646166,-496.54655641,0.00043835,60]
[368257406,1751076646175,-495.92980239,0.00043835,60]
[368257407,1751076646185,-497.6969603,0.00043835,60]
[368257408,1751076646194,-494.41925383,0.00043835,60]
[368257409,1751076646204,-490.0,0.00043835,60]
[368257410,1751076646213,-490.0,0.00043835,60]
[368257411,1751076646222,-497.30854294,0.00043835,60]
[368257412,1751076646232,-498.72026248,0.00043835,60]
[368257413,1751076646241,-490.70291844,0.00043835,60]
[368257414,1751076646250,-500.44591964,0.00043835,60]
[368257415,1751076646259,-495.25565708,0.00043835,60]
[368257416,1751076646269,-496.17787861,0.00043835,60]
[368257417,1751076646278,-490.0,0.00043835,60]
[368257418,1751076646287,-490.0,0.00043835,60]
[368257419,1751076646296,-493.85636171,0.00043835,60]
[368257420,1751076646304,-492.63855299,0.00043835,60]
[368257421,1751076646314,-490.0,0.00043835,60]
[368257422,1751076646323,-596.56839393,0.00043835,60]
[368257423,1751076646333,-490.0,0.00043835,60]
[368257424,1751076646342,-496.20861408,0.00043835,60]
[368257425,1751076646351,-490.0,0.00043835,60]
[368257426,1751076646360,-507.40925841,0.00043835,60]
[368257427,1751076646369,-495.24484538,0.00043835,60]
[368257428,1751076646378,-497.78491678,0.00043835,60]
[368257429,1751076646388,-493.44686483,0.00043835,60]
[368257430,1751076646397,-490.0,0.00043835,60]
[368257431,1751076646406,-493.93470928,0.00043835,60]
[368257432,1751076646415,-507.66001039,0.00043835,60]
[368257433,1751076646424,-493.75809951,0.00043835,60]
[368257434,1751076646433,-490.0,0.00043835,60]
[368257435,1751076646442,-250.0,0.00043835,60]
[368257436,1751076646451,-495.5947588,0.00043835,60]
[368257437,1751076646460,-503.36012015,0.00043835,60]
[368257438,1751076646469,-490.0,0.00043835,60]
[368257439,1751076646478,-497.51106071,0.00043835,60]
[368257440,1751076646487,-233.1139107,0.00043835,60]
[368257441,1751076646520,-260.66398125,0.00043835,60]
[368257442,1751076646529,-332.40864074,0.00043835,60]
[368257443,1751076646541,-165.60716395,0.00043835,60]
[368257444,1751076646550,-150.0,0.00043835,60]
[368257445,1751076646559,-372.05283555,0.00043835,60]
[368257446,1751076646572,-117.94716445,0.00043835,60]
[368257447,1751076646581,-502.32443475,0.00043835,60]
[368257448,1751076646591,-100.24187882,0.00043835,60]
[368257449,1751076646602,-399.75812118,0.00043835,60]
[368257450,1751076646613,-490.0,0.00043835,60]
[368257451,1751076646623,-204.2970066,0.00043835,60]
[368257452,1751076646633,-506.46933889,0.00043835,60]
[368257453,1751076646643,-490.0,0.00043835,60]
[368257454,1751076646652,-490.73698723,0.00043835,60]
[368257455,1751076646664,-3.03399198,0.00043835,60]
[368257456,1751076646674,-503.03558019,0.00043835,60]
[368257457,1751076646684,-490.0,0.00043835,60]
[368257458,1751076646693,-490.0,0.00043835,60]
[368257459,1751076646703,-504.43040714,0.00043835,60]
[368257460,1751076646713,-490.0,0.00043835,60]
[368257461,1751076646724,-500.41097916,0.00043835,60]
[368257462,1751076646734,-504.79003943,0.00043835,60]
[368257463,1751076646743,-601.94894677,0.00043835,60]
[368257464,1751076646753,-490.0,0.00043835,60]
[368257465,1751076646762,-496.51388583,0.00043835,60]
[368257466,1751076646772,-490.0,0.00043835,60]
[368257467,1751076646781,-250.36020669,0.00043835,60]
[368257468,1751076646804,-239.63979331,0.00043835,60]
[368257469,1751076646813,-380.36020669,0.00043835,60]
[368257470,1751076646825,-122.67992356,0.00043835,60]
[368257471,1751076646835,-490.0,0.00043835,60]
[368257472,1751076646845,-300.69779229,0.00043835,60]
[368257473,1751076647833,-500.0,0.00042466,3]
[368257474,1751076647842,-130.21210057,0.0004274,3]
[368257475,1751076647854,-369.78789943,0.0004274,3]
[368257476,1751076647863,-500.0,0.00043014,3]
[368257477,1751076647872,-500.0,0.00043288,3]
[368257478,1751076647881,-161.06162111,0.00043479,31]
[368257479,1751076647957,-338.93837889,0.00043479,31]
[368257480,1751076647966,-328.79213227,0.00043479,31]
[368257481,1751076647975,-380.39695057,0.00043479,31]
[368257482,1751076647985,-500.0,0.00043479,31]
[368257483,1751076647994,-500.0,0.00043479,31]
[368257484,1751076648004,-500.0,0.00043479,31]
[368257485,1751076648013,-500.0,0.00043479,31]
[368257486,1751076648022,-500.0,0.00043479,31]
[368257487,1751076648031,-500.0,0.00043562,3]
[368257488,1751076648041,-204.78413101,0.00043835,60]
[368257489,1751076648050,-497.26457794,0.00043835,60]
[368257490,1751076648059,-490.0,0.00043835,60]
[368257491,1751076648068,-496.15881427,0.00043835,60]
[368257492,1751076648077,-151.38043887,0.00043835,60]
[368257493,1751076648087,-490.0,0.00043835,60]
[368257494,1751076648096,-494.16943253,0.00043835,60]
[368257495,1751076648105,-490.0,0.00043835,60]
[368257496,1751076648115,-498.66351332,0.00043835,120]
[368257497,1751076648124,-496.60664934,0.00043835,60]
[368257498,1751076648134,-500.0,0.00043835,60]
[368257499,1751076648143,-503.19780164,0.00043835,2]
[368257500,1751076648153,-341.15335202,0.00043835,60]
[368257501,1751076648162,-490.0,0.00043835,60]
[368257502,1751076648171,-490.0,0.00043835,60]
[368257503,1751076648182,-490.0,0.00043835,60]
[368257504,1751076648192,-504.08436738,0.00043835,60]
[368257505,1751076648202,-490.0,0.00043835,60]
[368257506,1751076648212,-193.65203343,0.00043835,60]
[368257507,1751076648225,-296.34796657,0.00043835,60]
[368257508,1751076648235,-247.07356993,0.00043835,60]
[368257509,1751076648271,-248.32314143,0.00043835,60]
[368257510,1751076648281,-490.0,0.00043835,60]
[368257511,1751076648291,-509.87480231,0.00043835,60]
[368257512,1751076648301,-527.7472304,0.00043835,60]
[368257513,1751076648311,-490.0,0.00043835,60]
[368257514,1751076648320,-503.100285,0.00043835,60]
[368257515,1751076648330,-549.08556211,0.00043835,60]
[368257516,1751076648339,-490.0,0.00043835,60]
[368257517,1751076648349,-490.0,0.00043835,60]
[368257518,1751076648359,-490.0,0.00043835,60]
[368257519,1751076648369,-490.0,0.00043835,60]
[368257520,1751076648379,-499.58648928,0.00043835,60]
[368257521,1751076648388,-501.26078812,0.00043835,60]
[368257522,1751076648398,-499.28044091,0.00043835,60]
[368257523,1751076648408,-490.0,0.00043835,60]
[368257524,1751076648417,-490.0,0.00043835,60]
[368257525,1751076648427,-501.02923343,0.00043835,60]
[368257526,1751076648436,-490.0,0.00043835,60]
[368257527,1751076648445,-490.0,0.00043835,60]
[368257528,1751076648454,-494.08083677,0.00043835,60]
[368257529,1751076648463,-510.0,0.00043835,60]
[368257530,1751076648474,-501.38439934,0.00043835,60]
[368257531,1751076648483,-495.93561033,0.00043835,60]
[368257532,1751076648492,-490.0,0.00043835,60]
[368257533,1751076648502,-505.18643398,0.00043835,60]
[368257534,1751076648511,-491.35585875,0.00043835,60]
[368257535,1751076648523,-490.0,0.00043835,60]
[368257536,1751076648532,-500.0,0.00043835,60]
[368257537,1751076648541,-503.84438906,0.00043835,60]
[368257538,1751076648551,-490.0,0.00043835,60]
[368257539,1751076648562,-490.0,0.00043835,60]
[368257540,1751076648571,-513.60891496,0.00043835,60]
[368257541,1751076648581,-511.85534338,0.00043835,60]
[368257542,1751076648591,-413.20489377,0.00043835,60]
[368257543,1751076648601,-508.56241089,0.00043835,60]
[368257544,1751076648610,-515.58641786,0.00043835,60]
[368257545,1751076648620,-496.20870749,0.00043835,60]
[368257546,1751076648630,-490.0,0.00043835,60]
[368257547,1751076648640,-490.0,0.00043835,60]
[368257548,1751076648649,-490.0,0.00043835,60]
[368257549,1751076648659,-371.20622391,0.00043835,60]
[368257550,1751076648668,-490.0,0.00043835,60]
[368257551,1751076648677,-499.74647148,0.00043835,60]
[368257552,1751076648687,-512.16926926,0.00043835,60]
[368257553,1751076648697,-490.0,0.00043835,60]
[368257554,1751076648706,-504.37321056,0.00043835,60]
[368257555,1751076648717,-490.0,0.00043835,60]
[368257556,1751076648727,-497.61381311,0.00043835,60]
[368257557,1751076648737,-490.0,0.00043835,60]
[368257558,1751076648747,-490.0,0.00043835,60]
[368257559,1751076648756,-503.46642594,0.00043835,60]
[368257560,1751076648769,-431.73948187,0.00043835,60]
[368257561,1751076648778,-490.0,0.00043835,60]
[368257562,1751076648787,-490.0,0.00043835,60]
[368257563,1751076648798,-490.0,0.00043835,60]
[368257564,1751076648808,-495.85048273,0.00043835,60]
[368257565,1751076648818,-493.29237401,0.00043835,60]
[368257566,1751076648827,-434.8543907,0.00043835,60]
[368257567,1751076648837,-502.62993624,0.00043835,60]
[368257568,1751076648846,-496.59843087,0.00043835,60]
[368257569,1751076648856,-517.34936603,0.00043835,60]
[368257570,1751076648866,-497.20002269,0.00043835,60]
[368257571,1751076648876,-490.0,0.00043835,60]
[368257572,1751076648886,-504.36495646,0.00043835,60]
[368257573,1751076648895,-490.0,0.00043835,60]
[368257574,1751076648905,-490.0,0.00043835,60]
[368257575,1751076648914,-490.0,0.00043835,60]
[368257576,1751076648923,-490.0,0.00043835,60]
[368257577,1751076648938,-490.0,0.00043835,60]
[368257578,1751076648948,-503.32101155,0.00043835,60]
[368257579,1751076648957,-490.0,0.00043835,60]
[368257580,1751076648968,-490.0,0.00043835,60]
[368257581,1751076648977,-474.10111893,0.00043835,60]
[368257582,1751076648987,-490.0,0.00043835,60]
[368257583,1751076648996,-506.11770032,0.00043835,60]
[368257584,1751076649007,-496.15447862,0.00043835,60]
[368257585,1751076649016,-492.37752145,0.00043835,60]
[368257586,1751076649026,-490.0,0.00043835,60]
[368257587,1751076649038,-501.78195504,0.00043835,60]
[368257588,1751076649048,-501.77223066,0.00043835,60]
[368257589,1751076649057,-492.45227939,0.00043835,60]
[368257590,1751076649067,-490.0,0.00043835,60]
[368257591,1751076649076,-491.84809991,0.00043835,60]
[368257592,1751076649085,-506.08611785,0.00043835,60]
[368257593,1751076649095,-490.0,0.00043835,60]
[368257594,1751076649105,-499.6035452,0.00043835,60]
[368257595,1751076649115,-496.02789488,0.00043835,60]
[368257596,1751076649124,-490.0,0.00043835,60]
[368257597,1751076649133,-496.28276011,0.00043835,60]
[368257598,1751076649143,-490.0,0.00043835,60]
[368257599,1751076649152,-493.86482263,0.00043835,60]
[368257600,1751076649162,-490.0,0.00043835,60]
[368257601,1751076649172,-497.23376635,0.00043835,60]
[368257602,1751076649182,-498.32045819,0.00043835,60]
[368257603,1751076649191,-506.12924325,0.00043835,60]
[368257604,1751076649200,-492.77800261,0.00043835,60]
[368257605,1751076649211,-496.57484713,0.00043835,60]
[368257606,1751076649224,-515.55661683,0.00043835,60]
[368257607,1751076649234,-490.0,0.00043835,60]
[368257608,1751076649244,-490.0,0.00043835,60]
[368257609,1751076649255,-490.0,0.00043835,60]
[368257610,1751076649264,-496.80946848,0.00043835,60]
[368257611,1751076649275,-490.0,0.00043835,60]
[368257612,1751076649285,-490.0,0.00043835,60]
[368257613,1751076649295,-502.28310717,0.00043835,60]
[368257614,1751076649304,-496.74753804,0.00043835,60]
[368257615,1751076649314,-490.0,0.00043835,60]
[368257616,1751076649323,-503.01182774,0.00043835,60]
[368257617,1751076649333,-535.97841886,0.00043835,60]
[368257618,1751076649342,-490.0,0.00043835,60]
[368257619,1751076649353,-490.0,0.00043835,60]
[368257620,1751076649362,-502.29065668,0.00043835,60]
[368257621,1751076649371,-492.39363768,0.00043835,60]
[368257622,1751076649381,-493.74929083,0.00043835,60]
[368257623,1751076649390,-503.8182653,0.00043835,60]
[368257624,1751076649399,-490.0,0.00043835,60]
[368257625,1751076649410,-490.0,0.00043835,60]
[368257626,1751076649419,-490.0,0.00043835,60]
[368257627,1751076649428,-490.0,0.00043835,60]
[368257628,1751076649437,-490.0,0.00043835,60]
[368257629,1751076649446,-495.26651216,0.00043835,60]
[368257630,1751076649455,-490.0,0.00043835,60]
[368257631,1751076649464,-499.96726491,0.00043835,60]
[368257632,1751076649473,-498.9618516,0.00043835,60]
[368257633,1751076649482,-497.87760705,0.00043835,60]
[368257634,1751076649491,-509.79368087,0.00043835,60]
[368257635,1751076649500,-595.1,0.00043835,60]
[368257636,1751076649509,-490.0,0.00043835,60]
[368257637,1751076649518,-494.96169816,0.00043835,60]
[368257638,1751076649528,-496.11847553,0.00043835,60]
[368257639,1751076649537,-494.06684259,0.00043835,60]
[368257640,1751076649546,-490.0,0.00043835,60]
[368257641,1751076649555,-490.0,0.00043835,60]
[368257642,1751076649564,-491.08104297,0.00043835,60]
[368257643,1751076649573,-185.6009284,0.00043835,60]
[368257644,1751076649599,-309.76038615,0.00043835,60]
[368257645,1751076649609,-490.0,0.00043835,60]
[368257646,1751076649618,-496.05673542,0.00043835,60]
[368257647,1751076649627,-490.0,0.00043835,60]
[368257648,1751076649636,-495.02319311,0.00043835,60]
[368257649,1751076649646,-490.0,0.00043835,60]
[368257650,1751076649655,-797.06,0.00043835,60]
[368257651,1751076649665,-490.0,0.00043835,60]
[368257652,1751076649674,-490.0,0.00043835,60]
[368257653,1751076649683,-490.0,0.00043835,60]
[368257654,1751076649693,-490.0,0.00043835,60]
[368257655,1751076649702,-490.0,0.00043835,60]
[368257656,1751076649713,-494.60766671,0.00043835,60]
[368257657,1751076649726,-490.0,0.00043835,60]
[368257658,1751076649735,-496.71633652,0.00043835,60]
[368257659,1751076649745,-490.0,0.00043835,60]
[368257660,1751076649754,-493.90029081,0.00043835,60]
[368257661,1751076649764,-408.67023332,0.00043835,60]
[368257662,1751076649774,-490.0,0.00043835,60]
[368257663,1751076649784,-491.60381873,0.00043835,60]
[368257664,1751076649795,-490.0,0.00043835,60]
[368257665,1751076649809,-504.81590122,0.00043835,60]
[368257666,1751076649819,-490.0,0.00043835,60]
[368257667,1751076649828,-490.0,0.00043835,60]
[368257668,1751076649840,-490.0,0.00043835,60]
[368257669,1751076649850,-490.0,0.00043835,60]
[368257670,1751076649860,-490.0,0.00043835,60]
[368257671,1751076649870,-490.0,0.00043835,60]
[368257672,1751076649879,-497.69161531,0.00043835,60]
[368257673,1751076649888,-490.0,0.00043835,60]
[368257674,1751076649898,-490.0,0.00043835,60]
[368257675,1751076649907,-490.0,0.00043835,60]
[368257676,1751076649916,-490.0,0.00043835,60]
[368257677,1751076649925,-500.0,0.00043835,60]
[368257678,1751076649934,-490.0,0.00043835,60]
[368257679,1751076649943,-208.55476554,0.00043835,60]
[368257680,1751076649952,-504.71472667,0.00043835,60]
[368257681,1751076649961,-504.48952013,0.00043835,60]
[368257682,1751076649971,-490.0,0.00043835,60]
[368257683,1751076649979,-511.47400564,0.00043835,60]
[368257684,1751076649988,-490.0,0.00043835,60]
[368257685,1751076649997,-500.84593596,0.00043835,60]
[368257686,1751076650008,-495.05605266,0.00043835,60]
[368257687,1751076650017,-490.0,0.00043835,60]
[368257688,1751076650026,-490.24850711,0.00043835,60]
[368257689,1751076650035,-492.40699988,0.00043835,60]
[368257690,1751076650044,-504.53678643,0.00043835,60]
[368257691,1751076650053,-490.0,0.00043835,60]
[368257692,1751076650062,-499.08755398,0.00043835,60]
[368257693,1751076650071,-384.52779187,0.00043835,60]
[368257694,1751076650081,-493.98273882,0.00043835,60]
[368257695,1751076650090,-501.53976837,0.00043835,60]
[368257696,1751076650100,-500.07643397,0.00043835,60]
[368257697,1751076650110,-1001.16,0.00043835,60]
[368257698,1751076650122,-500.0904947,0.00043835,60]
[368257699,1751076650131,-490.0,0.00043835,60]
[368257700,1751076650140,-500.37309029,0.00043835,60]
[368257701,1751076650149,-153.93740129,0.00043835,60]
[368257702,1751076650158,-490.85003331,0.00043835,60]
[368257703,1751076650166,-490.0,0.00043835,60]
[368257704,1751076650175,-499.04381368,0.00043835,60]
[368257705,1751076650184,-505.09270661,0.00043835,60]
[368257706,1751076650193,-495.308107,0.00043835,60]
[368257707,1751076650203,-494.167564,0.00043835,60]
[368257708,1751076650211,-490.0,0.00043835,60]
[368257709,1751076650220,-500.10461254,0.00043835,60]
[368257710,1751076650230,-497.24872368,0.00043835,60]
[368257711,1751076650239,-495.57597707,0.00043835,60]
[368257712,1751076650249,-490.0,0.00043835,60]
[368257713,1751076650258,-495.76477498,0.00043835,60]
[368257714,1751076650267,-490.0,0.00043835,60]
[368257715,1751076650277,-490.0,0.00043835,60]
[368257716,1751076650287,-490.0,0.00043835,60]